[Event "Hungarian Youth-ch U12 2022"]
[Site "Eger"]
[Date "2022.07.23"]
[Round "1.1"]
[White "Onodi, Miklos"]
[Black "Horvath, Andras"]
[Result "1-0"]
[ECO "D02"]
[WhiteElo "1901"]
[BlackElo "2251"]
[Annotator "TA"]
[PlyCount "59"]
[EventDate "2022.07.21"]
[EventType "tourn"]
[EventCountry "HUN"]
[SourceTitle "playchess.com"]
[Source "ChessBase"]
[SourceQuality "1"]
[TimeControl "40/5400+30:1800+30"]

{[%evp 10,59,0,6,0,0,0,0,0,0,0,-6,24,9,29,20,121,129,172,86,95,88,97,91,103,56,55,53,81,71,79,82,185,185,185,183,251,109,367,354,346,340,302,226,226,226,226,191,202,191,621,453]} 1. d4 {[%emt 0:00:33]} d5 {[%emt 0:00:43]} 2. Nf3 {[%emt 0:00:05]} Nf6 {[%emt 0:00:55]} 3. g3 {[%emt 0:00:06]} Bf5 {[%emt 0:05:05]} 4. Bg2 {[%emt 0:00:06]} e6 {[%emt 0:00:20]} 5. c4 {[%emt 0:00:09]} c6 {[%emt 0:01:44]} 6. Nc3 {[%emt 0:00:07]} Be7 {[%emt 0:01:14] D11: Slav Defence: 3 Nf3 sidelines and 3...Nf6 4 e3 Bg4.} 7. Qb3 $1 {[%emt 0:00:21][%mdl 4] outshines the older 7.0-0.} Qb6 {[%emt 0:00:37]} 8. c5 {[%emt 0:00:19]} Qxb3 {[%emt 0:00:14] The position is equal.} 9. axb3 {[%emt 0:00:05]} Na6 {[%emt 0:00:40]} 10. Ra4 {[%emt 0:00:29]} O-O {[%emt 0:05:38]} 11. O-O {[%emt 0:03:49] [#]} Rfe8 $146 {[%emt 0:14:00]} ({Predecessor:} 11... Nd7 12. Bf4 Rfe8 13. b4 Bc2 14. b5 cxb5 15. Ra5 b4 16. Nb5 Ndb8 17. Rc1 Be4 18. Ne5 Bxg2 19. Kxg2 {0-1 (36) Lopes de Lima,A (2018)-Parente,R (2067) Fortaleza 2017}) 12. Ne5 {[%emt 0:01:03][%cal Oe5c6]} Bc2 {[%emt 0:06:39] [#]} (12... Nb8 $11 {remains equal.}) 13. Nxc6 $1 $16 {[%emt 0:03:58][%mdl 512]} Bxb3 {[%emt 0:07:09]} (13... Bxc5 14. dxc5) 14. Ra3 {[%emt 0:14:48]} (14. Nxe7+ $18 Rxe7 15. Ra3) 14... bxc6 {[%emt 0:04:36]} 15. Rxa6 {[%emt 0:00:52]} Rec8 {[%emt 0:06:12] [#]} 16. Bf4 $1 {[%emt 0:06:49]} Nh5 {[%emt 0:07:02]} 17. Rfa1 {[%emt 0:08:43] White is more active.} (17. Be3 $16) 17... Nxf4 $14 {[%emt 0:01:11]} 18. gxf4 {[%emt 0:00:47]} Rc7 19. e3 {[%emt 0:12:58]} Bc4 {[%emt 0:05:38]} 20. R6a4 {[%emt 0:00:25]} a6 {[%emt 0:01:02]} (20... Bd8 $16 {was necessary.}) 21. Bf1 $18 {[%emt 0:00:42]} Bxf1 {[%emt 0:01:36]} 22. Kxf1 {[%emt 0:00:10]} Rca7 {[%emt 0:01:52] [#]} (22... Kf8 $142 23. Rxa6 Rxa6 24. Rxa6 g6) 23. b4 {[%emt 0:01:41]} (23. Na2 $1 $18 {[%cal Ra2b4] and the rest is easy.}) 23... a5 {[%emt 0:06:51][%mdl 8192] A mistake that costs the game.} (23... g6 $16 {was called for.}) 24. Rxa5 {[%emt 0:03:23]} Rxa5 {[%emt 0:00:59]} 25. Rxa5 {[%emt 0:00:21] KRB-KRN} ({Weaker is} 25. bxa5 Ra6 26. Rb1 Rxa5 27. Rb8+ Bf8 $16) 25... Rb8 {[%emt 0:01:05]} 26. b5 {[%emt 0:02:33]} cxb5 {[%emt 0:01:18]} 27. Rxb5 {[%emt 0:00:20]} Rxb5 {[%emt 0:01:26]} 28. Nxb5 {[%emt 0:00:04]} Kf8 {[%emt 0:00:11]} 29. f5 {[%emt 0:00:33]} e5 $2 {[%emt 0:01:08]} (29... Ke8 30. fxe6 fxe6 31. Nc7+ Kd7) 30. Nc7 {[%emt 0:00:25] Weighted Error Value: White=0.23 (precise) /Black=0.61} 1-0

[Event "Hungarian Youth-ch U12 2022"]
[Site "Eger"]
[Date "2022.07.23"]
[Round "1.2"]
[White "Juhasz, Edmond"]
[Black "Kovacs, Kristof"]
[Result "0-1"]
[ECO "C58"]
[WhiteElo "1510"]
[BlackElo "1812"]
[Annotator "NA RC COMBH"]
[PlyCount "88"]
[EventDate "2022.07.21"]
[EventType "tourn"]
[EventCountry "HUN"]
[SourceTitle "playchess.com"]
[Source "ChessBase"]
[SourceQuality "1"]
[TimeControl "40/5400+30:1800+30"]

1. e4 {[%emt 0:00:36]} e5 {[%emt 0:00:38]} 2. Nf3 {[%emt 0:00:26]} Nc6 {[%emt 0:00:13]} 3. Bc4 {[%emt 0:00:58]} Nf6 {[%emt 0:00:21]} 4. Ng5 {[%emt 0:01:42]} d5 {[%emt 0:00:14]} 5. exd5 {[%emt 0:00:52]} Na5 {[%emt 0:00:07]} 6. Bb5+ {[%emt 0:01:29]} c6 {[%emt 0:00:09]} 7. dxc6 {[%emt 0:00:55]} bxc6 {[%emt 0:00:20]} 8. Qf3 {[%emt 0:01:56]} Rb8 {[%emt 0:00:48]} 9. Bxc6+ {[%emt 0:04:31]} Nxc6 {[%emt 0:00:19]} 10. Qxc6+ {[%emt 0:00:18]} Nd7 {[%emt 0:00:19]} 11. Ne4 {[%emt 0:06:23]} Rb6 {[%emt 0:02:03]} 12. Qc3 {[%emt 0:14:03]} Bb4 {[%emt 0:04:05]} 13. Qe3 O-O 14. a3 {[%emt 0:03:17]} Be7 {[%emt 0:00:42]} 15. Nbc3 {[%emt 0:05:30]} f5 {[%emt 0:01:25]} 16. Nd5 {[%emt 0:01:57]} Rg6 {[%emt 0:07:27]} 17. Nxe7+ {[%emt 0:05:57]} Qxe7 {[%emt 0:00:09]} 18. Qb3+ {[%emt 0:00:21]} Kh8 {[%emt 0:00:06]} 19. Nc3 {[%emt 0:01:43]} Rxg2 {[%emt 0:00:37]} 20. d3 {[%emt 0:04:59]} Nc5 {[%emt 0:04:17]} 21. Qb4 {[%emt 0:02:13]} Rg4 {[%emt 0:02:33]} 22. Qa5 {[%emt 0:04:38]} Bb7 {[%emt 0:00:50]} 23. Rf1 {[%emt 0:01:16]} Bg2 {[%emt 0:03:43]} 24. Rg1 {[%emt 0:01:58]} e4 {[%emt 0:08:55]} 25. Be3 {[%emt 0:02:56]} Nb7 {[%emt 0:01:17]} 26. Qxa7 {[%emt 0:06:08]} exd3 {[%emt 0:00:14]} 27. O-O-O {[%emt 0:02:53]} dxc2 {[%emt 0:00:17]} 28. Kxc2 {[%emt 0:02:29]} h6 {[%emt 0:01:06]} 29. Kb1 {[%emt 0:02:06]} f4 {[%emt 0:04:08]} 30. Bb6 {[%emt 0:02:51]} Rc8 {[%emt 0:02:52]} 31. Rge1 {[%emt 0:01:37]} Qf7 {[%emt 0:00:09]} 32. Qa4 {[%emt 0:01:18]} Rg6 {[%emt 0:01:28]} 33. Bd4 {[%emt 0:03:23]} Nd6 {[%emt 0:03:09]} 34. Qa7 {[%emt 0:03:56]} Qb3 {[%emt 0:04:52]} 35. Ka1 {[%emt 0:06:48]} Nc4 {[%emt 0:00:44]} 36. Rb1 {[%emt 0:01:18]} Ra8 {[%emt 0:02:21]} 37. Qe7 {[%emt 0:01:23]} Nxa3 {[%emt 0:01:10]} 38. bxa3 {[%emt 0:01:29]} Rxa3+ {[%emt 0:00:02]} 39. Qxa3 {[%emt 0:00:08]} Qxa3+ {[%emt 0:00:04]} 40. Na2 {[%emt 0:00:00]} Ra6 {[%emt 0:00:00]} 41. Rb2 {[%emt 0:01:38]} Bd5 {[%emt 0:00:26]} 42. Ree2 {[%emt 0:01:27]} Bxa2 {[%emt 0:00:13]} 43. Rb8+ {[%emt 0:02:02]} Kh7 {[%emt 0:00:13]} 44. Bb2 {[%emt 0:00:19]} Qd3 {[%emt 0:00:07]} 0-1

[Event "Hungarian Youth-ch U12 2022"]
[Site "Eger"]
[Date "2022.07.23"]
[Round "1.3"]
[White "Feher, Botond"]
[Black "Janosi, Bence"]
[Result "1-0"]
[ECO "A36"]
[WhiteElo "1747"]
[BlackElo "1428"]
[Annotator "NA RC COMBH"]
[PlyCount "49"]
[EventDate "2022.07.21"]
[EventType "tourn"]
[EventCountry "HUN"]
[SourceTitle "playchess.com"]
[Source "ChessBase"]
[SourceQuality "1"]
[TimeControl "40/5400+30:1800+30"]

1. c4 {[%emt 0:00:39]} c5 {[%emt 0:00:35]} 2. g3 {[%emt 0:00:05]} Nc6 {[%emt 0:00:18]} 3. Bg2 {[%emt 0:00:10]} g6 {[%emt 0:00:26]} 4. Nc3 {[%emt 0:00:21]} Bg7 {[%emt 0:00:22]} 5. e4 {[%emt 0:00:12]} e5 {[%emt 0:00:06]} 6. Nge2 {[%emt 0:00:05]} Nge7 {[%emt 0:00:13]} 7. O-O {[%emt 0:00:18]} O-O {[%emt 0:00:14]} 8. d3 {[%emt 0:00:07]} d6 {[%emt 0:00:08]} 9. Rb1 {[%emt 0:01:01]} f5 {[%emt 0:00:54]} 10. f4 {[%emt 0:09:52]} Be6 {[%emt 0:02:32]} 11. Nd5 {[%emt 0:00:52]} fxe4 {[%emt 0:01:48]} 12. dxe4 {[%emt 0:02:07]} Nd4 {[%emt 0:02:43]} 13. Nxd4 {[%emt 0:10:27]} Bxd5 {[%emt 0:02:56]} 14. cxd5 {[%emt 0:13:07]} cxd4 {[%emt 0:01:09]} 15. fxe5 {[%emt 0:00:33]} dxe5 {[%emt 0:00:25]} 16. Bg5 {[%emt 0:01:45]} h6 {[%emt 0:00:53]} 17. Bd2 {[%emt 0:00:07]} Qb6 {[%emt 0:04:24]} 18. Qb3 {[%emt 0:00:49]} Qxb3 {[%emt 0:01:18]} 19. axb3 {[%emt 0:00:05]} Rac8 {[%emt 0:04:38]} 20. Bb4 {[%emt 0:01:14]} Rxf1+ {[%emt 0:00:16]} 21. Rxf1 {[%emt 0:00:07]} Bf8 {[%emt 0:00:47]} 22. Bh3 {[%emt 0:00:20]} Re8 {[%emt 0:09:00]} 23. Be6+ {[%emt 0:00:28]} Kh8 {[%emt 0:02:34]} 24. Rf7 {[%emt 0:00:51]} a5 {[%emt 0:06:10]} 25. Bd6 {[%emt 0:00:18]} 1-0

[Event "Hungarian Youth-ch U12 2022"]
[Site "Eger"]
[Date "2022.07.23"]
[Round "1.4"]
[White "Bod, Marton"]
[Black "Lehocz, Jozsef Jr."]
[Result "0-1"]
[ECO "B76"]
[WhiteElo "1758"]
[BlackElo "1919"]
[Annotator "TA"]
[PlyCount "74"]
[EventDate "2022.07.21"]
[EventType "tourn"]
[EventCountry "HUN"]
[SourceTitle "playchess.com"]
[Source "ChessBase"]
[SourceQuality "1"]
[TimeControl "40/5400+30:1800+30"]

{[%evp 29,74,-31,-16,-84,-89,-93,-106,-151,-93,-208,-212,-271,-266,-275,-274,-273,-270,-281,-293,-285,-253,-292,-289,-280,-275,-315,-317,-340,-344,-349,-345,-366,-359,-348,-336,-387,-344,-393,-366,-458,-456,-442,-423,-486,-493,-643,-647]} 1. e4 {[%emt 0:00:38]} c5 {[%emt 0:00:36]} 2. Nf3 {[%emt 0:00:11]} d6 {[%emt 0:00:05]} 3. d4 {[%emt 0:00:08]} cxd4 {[%emt 0:00:05]} 4. Nxd4 {[%emt 0:00:14]} Nf6 {[%emt 0:00:21]} 5. Nc3 {[%emt 0:00:22]} g6 {[%emt 0:00:11]} 6. Be3 {[%emt 0:00:38]} Bg7 {[%emt 0:00:13]} 7. f3 {[%emt 0:00:14]} O-O {[%emt 0:00:09]} 8. Bc4 {[%emt 0:00:20]} Nc6 {[%emt 0:00:09]} 9. Bb3 {[%emt 0:00:29]} Bd7 {[%emt 0:01:27]} 10. Qd2 {[%emt 0:00:17]} Rc8 {[%emt 0:00:21]} 11. O-O-O {[%emt 0:01:46]} Ne5 {[%emt 0:00:57]} 12. h4 {[%emt 0:01:43]} h5 {[%emt 0:00:21][%cal Bh7h5,Bh5g4][%mdl 32]} 13. g4 {[%emt 0:04:23]} hxg4 {[%emt 0:01:31]} 14. h5 {[%emt 0:01:26]} Nxh5 {[%emt 0:02:17]} 15. Bh6 {[%emt 0:08:09]} e6 {[%emt 0:07:29]} (15... Nxf3 $2 16. Nxf3 e6 17. Bxg7 Kxg7 18. Rdg1 $1 $18 (18. Qxd6 Bc6 $18)) (15... gxf3 $2 16. Rxh5 $1 {[%mdl 512]} Bf6 17. Rxe5 dxe5 18. Nxf3 $18) 16. Bxg7 {[%emt 0:01:04] B78: Sicilian Dragon: Yugoslav Attack, 9 Bc4 Bd7 10 0-0-0 Rc8.} (16. Rdg1 $1 $11 {remains equal.} Qf6 17. Bxg7 Qxg7 18. fxg4) 16... Kxg7 $17 {[%emt 0:01:09]} 17. fxg4 {[%emt 0:06:52]} Nxg4 {[%emt 0:02:20]} 18. Rdg1 {[%emt 0:02:08] [#] Black is better.} Ngf6 {[%emt 0:16:04]} (18... Nhf6 $142 $1 {White must now prevent ...Rh8.} 19. Nf3 Rh8 20. Rxh8 Qxh8 21. Qxd6 Qh3) 19. Qe2 {[%emt 0:06:42]} (19. Kb1 $17 {keeps fighting.}) 19... Rh8 {[%emt 0:08:53][%cal Oh5g3] Threatens to win with ...Ng3!} 20. Qe3 {[%emt 0:02:20] Inhibits Ng3.} Qb6 {[%emt 0:02:18]} 21. e5 {[%emt 0:02:15]} dxe5 {[%emt 0:01:38]} 22. Qxe5 {[%emt 0:00:11]} Qc5 {[%emt 0:02:18] [#]} 23. Rg5 $146 {[%emt 0:06:10]} ({Predecessor:} 23. Qe3 e5 24. Nce2 exd4 25. Nxd4 a5 26. Rg5 Qc7 27. Rf1 a4 28. Bxa4 Bxa4 29. Rxg6+ fxg6 {0-1 (67) Kandic,M (2216)-Mikalsen,E (1973) Caleta 2010}) 23... Qxe5 {[%emt 0:01:35]} 24. Rxe5 {[%emt 0:00:07]} Bc6 {[%emt 0:16:37]} 25. Rg1 {[%emt 0:01:05]} Nf4 {[%emt 0:03:33]} 26. Nxc6 {[%emt 0:01:08]} Rxc6 {[%emt 0:00:38]} 27. Rf1 {[%emt 0:00:26]} Rh5 {[%emt 0:04:39]} 28. Rb5 {[%emt 0:00:49] [#]} Ne2+ {[%emt 0:01:07][%mdl 512]} 29. Nxe2 {[%emt 0:00:57]} Rxb5 {[%emt 0:00:05]} 30. Nd4 {[%emt 0:00:23]} Rbc5 {[%emt 0:01:01]} 31. Nxc6 {[%emt 0:00:09]} Rxc6 $19 {[%emt 0:00:06][%mdl 4096] Endgame KRB-KRN} ({Don't blunder} 31... bxc6 $2 32. Rg1 $19) 32. Kd2 {[%emt 0:00:29]} Rd6+ {[%emt 0:01:41]} 33. Ke3 {[%emt 0:00:19]} g5 {[%emt 0:00:47][%cal Bg6g5,Bg5g4][%mdl 32]} 34. c4 {[%emt 0:00:26]} Ng4+ {[%emt 0:00:53] Black is clearly winning.} 35. Ke2 {[%emt 0:00:22]} Ne5 {[%emt 0:02:36]} 36. Rg1 {[%emt 0:00:38]} g4 {[%emt 0:01:37]} 37. Ke3 {[%emt 0:00:14]} f5 {[%emt 0:00:56] White did not feel at home in the position after the opening.  Weighted Error Value: White=0.41/Black=0.08 (flawless)} 0-1

[Event "Hungarian Youth-ch U12 2022"]
[Site "Eger"]
[Date "2022.07.23"]
[Round "1.5"]
[White "Karacsonyi, Bank"]
[Black "Horvath, Matyas Sandor"]
[Result "1-0"]
[ECO "C42"]
[WhiteElo "1791"]
[BlackElo "1431"]
[Annotator "NA RC COMBH"]
[PlyCount "65"]
[EventDate "2022.07.21"]
[EventType "tourn"]
[EventCountry "HUN"]
[SourceTitle "playchess.com"]
[Source "ChessBase"]
[SourceQuality "1"]
[TimeControl "40/5400+30:1800+30"]

1. e4 {[%emt 0:00:32]} e5 {[%emt 0:00:37]} 2. Nf3 {[%emt 0:00:05]} Nf6 {[%emt 0:00:08]} 3. Nxe5 {[%emt 0:00:08]} d6 {[%emt 0:00:09]} 4. Nf3 {[%emt 0:00:03]} Nxe4 {[%emt 0:00:09]} 5. d4 {[%emt 0:00:05]} d5 {[%emt 0:00:15]} 6. Bd3 {[%emt 0:00:06]} Be7 {[%emt 0:00:45]} 7. O-O {[%emt 0:00:35]} O-O {[%emt 0:00:17]} 8. Re1 {[%emt 0:01:17]} Ng5 {[%emt 0:01:42]} 9. Nxg5 {[%emt 0:06:19]} Bxg5 {[%emt 0:00:33]} 10. Qh5 {[%emt 0:00:26]} h6 {[%emt 0:01:54]} 11. Bxg5 {[%emt 0:00:39]} Qxg5 {[%emt 0:00:12]} 12. Qxg5 {[%emt 0:00:33]} hxg5 {[%emt 0:00:09]} 13. Nd2 {[%emt 0:05:08]} Nd7 {[%emt 0:08:46]} 14. Re7 {[%emt 0:06:13]} g6 {[%emt 0:07:01]} 15. h3 {[%emt 0:01:28]} c6 {[%emt 0:03:18]} 16. Nf3 {[%emt 0:00:24]} g4 {[%emt 0:03:15]} 17. hxg4 {[%emt 0:00:21]} Rb8 {[%emt 0:00:49]} 18. Ng5 {[%emt 0:01:09]} Nf6 {[%emt 0:03:54]} 19. f3 {[%emt 0:00:40]} Nh7 {[%emt 0:01:35]} 20. Nxh7 {[%emt 0:01:40]} Kxh7 {[%emt 0:00:09]} 21. Kf2 {[%emt 0:01:40]} Kg7 {[%emt 0:02:34]} 22. g5 {[%emt 0:02:27]} Be6 {[%emt 0:02:05]} 23. Re1 {[%emt 0:00:51]} Rfe8 {[%emt 0:04:21]} 24. R1xe6 {[%emt 0:00:56]} Kf8 {[%emt 0:01:46]} 25. Rxe8+ {[%emt 0:00:34]} Rxe8 {[%emt 0:00:09]} 26. Rxe8+ {[%emt 0:00:07]} Kxe8 {[%emt 0:00:08]} 27. f4 {[%emt 0:00:02]} b6 {[%emt 0:00:31]} 28. f5 {[%emt 0:00:03]} gxf5 {[%emt 0:00:27]} 29. Bxf5 {[%emt 0:00:06]} c5 {[%emt 0:00:35]} 30. Ke3 {[%emt 0:00:07]} Ke7 {[%emt 0:00:22]} 31. dxc5 {[%emt 0:00:03]} bxc5 {[%emt 0:00:10]} 32. Kf4 {[%emt 0:00:02]} d4 {[%emt 0:00:28]} 33. Ke5 {[%emt 0:00:04]} 1-0

[Event "Hungarian Youth-ch U12 2022"]
[Site "Eger"]
[Date "2022.07.24"]
[Round "2.1"]
[White "Horvath, Andras"]
[Black "Horvath, Matyas Sandor"]
[Result "1-0"]
[ECO "C47"]
[WhiteElo "2251"]
[BlackElo "1431"]
[Annotator "TA"]
[PlyCount "41"]
[EventDate "2022.07.21"]
[EventType "tourn"]
[EventCountry "HUN"]
[SourceTitle "playchess.com"]
[Source "ChessBase"]
[SourceQuality "1"]
[TimeControl "40/5400+30:1800+30"]

{[%evp 15,41,45,127,10,8,7,100,54,102,95,136,144,545,540,645,619,812,802,970,864,1067,1082,1047,1043,1139,903,1018,987]} 1. e4 {[%emt 0:00:35]} e5 {[%emt 0:00:38]} 2. Nf3 {[%emt 0:00:07]} Nf6 {[%emt 0:00:11]} 3. Nc3 {[%emt 0:00:22]} Nc6 {[%emt 0:00:17]} 4. d4 {[%emt 0:00:09]} exd4 {[%emt 0:01:02]} 5. Nxd4 {[%emt 0:00:22]} Bc5 {[%emt 0:03:28]} 6. Nxc6 {[%emt 0:01:02]} bxc6 {[%emt 0:00:24]} 7. Bd3 {[%emt 0:01:20]} h6 {[%emt 0:01:21]} 8. O-O {[%emt 0:03:24]} O-O {[%emt 0:00:39]} ({Better is} 8... d6 $14) 9. Bf4 {[%emt 0:07:36] C47: Scotch Four Knights and Four Knights with 4 g3.} (9. e5 $16 Nd5 10. Nxd5 cxd5 11. Qf3) 9... d6 $11 {[%emt 0:04:37] [#]} 10. Qd2 $146 {[%emt 0:02:55]} ({Predecessor:} 10. Re1 Nh7 11. Qf3 Qh4 12. Qg3 Qh5 13. Be2 Qg6 14. Bc4 Qxg3 15. Bxg3 Rb8 16. Rab1 Be6 {½-½ (48) Moulik,J (1556)-Korinek,J (1355) Mlada Boleslav 2017}) 10... h5 {[%emt 0:03:14]} (10... Bb6 $11 {keeps the balance.}) 11. Rad1 {[%emt 0:02:34]} (11. Bg5 $16) 11... Re8 {[%emt 0:06:09]} (11... Qe7 $14 {might be stronger.}) 12. Bg5 $16 {[%emt 0:04:58]} Bb4 {[%emt 0:11:23]} 13. f4 {[%emt 0:07:44][%cal Oe4e5,Bf2f4,Bf4f5][%mdl 32] Threatens to win with e5!} Re6 {[%emt 0:16:00][%mdl 8192] [#] Inhibits e5. Loses the game.} (13... Qe7 $16 {is a better chance.}) 14. e5 $1 $18 {[%emt 0:06:58] White is clearly winning.} Bxc3 {[%emt 0:02:04]} 15. bxc3 {[%emt 0:02:59]} d5 {[%emt 0:06:04]} 16. exf6 {[%emt 0:01:40]} gxf6 {[%emt 0:01:23]} 17. f5 {[%emt 0:01:54]} Re8 {[%emt 0:01:21]} 18. Bh4 {[%emt 0:02:31] [#] And now Qh6 would win.} Kh7 {[%emt 0:00:52] Against Qh6+} 19. Rde1 {[%emt 0:14:28]} Rg8 {[%emt 0:02:48]} 20. Be2 {[%emt 0:02:56]} Bd7 {[%emt 0:02:16]} 21. Bxh5 {[%emt 0:01:27] Weighted Error Value: White=0.28 (precise) /Black=1.45} 1-0